bitfinex-derivatives/quotes_SOLF0:USTF0_20240925
["timestamp","ask_amount","ask_price","bid_price","bid_amount"]
[1727240620159,3.3065,151.21,151.2,8.12]
[1727240623563,2.6419,151.25,151.2,8.12]
[1727240625768,3.3063,151.22,151.19,3.3068]
[1727240625968,3.3063,151.22,151.21,8.12]
[1727240626868,2.6419,151.25,151.21,15.83733379]
[1727240626869,1.3021,151.25,151.21,15.83733379]
[1727240627066,1.3021,151.25,151.24,8.12]
[1727240627566,4.6077,151.25,151.24,8.12]
[1727240627771,1.3386,151.26,151.24,8.12]
[1727240628073,98.15830953,151.3,151.24,8.12]
[1727240628265,3.3054,151.26,151.22,3.3061]
[1727240628572,3.3054,151.26,151.25,8.12]
[1727240631972,99.43330953,151.3,151.25,8.12]
[1727240632172,2.5529,151.3,151.28,8.12]
[1727240634068,12.57305992,151.37,151.29,8.12]
[1727240634271,11.7902728,151.36,151.29,8.12]
[1727240634475,1.0065728,151.35,151.31,8.12]
[1727240634777,3.33906487,151.34,151.31,8.12]
[1727240634970,3.3038,151.33,151.31,8.12]
[1727240635273,10.7837,151.36,151.31,8.12]
[1727240635482,1.00659665,151.35,151.31,8.12]
[1727240635668,3.38865379,151.34,151.31,8.12]
[1727240636175,10.7837,151.36,151.31,8.12]
[1727240636879,3.304,151.32,151.31,8.12]
[1727240640575,3.3044,151.31,151.27,3.3051]
[1727240640782,11.48815657,151.34,151.29,8.12]
[1727240640970,8.12,151.34,151.29,8.12]
[1727240641574,3.3046,151.3,151.29,8.12]
[1727240643573,3.29828737,151.34,151.27,8.12]
[1727240643775,8.12,151.31,151.27,8.12]
[1727240643984,2.648,151.3,151.27,8.12]
[1727240644280,33.7995651,151.36,151.29,8.12]
[1727240644281,3.26434805,151.34,151.29,8.12]
[1727240644481,1.3274,151.36,151.32,8.12]
[1727240644482,2.648,151.35,151.32,8.12]
[1727240644675,3.26798466,151.34,151.32,8.12]
[1727240645183,3.3038,151.33,151.32,8.12]
[1727240648785,3.3037,151.34,151.32,8.12]
[1727240648987,3.3037,151.34,151.33,8.12]
[1727240649480,19.84,151.45,151.33,8.12]
[1727240649680,19.84,151.45,151.28,3.24231404]
[1727240649681,1.3927,151.39,151.36,8.12]
[1727240650579,3.3031,151.37,151.36,8.12]
[1727240651882,3.3032,151.36,151.35,8.12]
[1727240658791,3.303,151.37,151.35,8.12]
[1727240658991,3.303,151.37,151.36,8.12]
[1727240662191,3.3035,151.35,151.31,3.3041]
[1727240662492,3.3035,151.35,151.34,8.12]
[1727240664593,1.3927,151.39,151.31,3.28166314]
[1727240664798,1.3927,151.39,151.34,8.12]
[1727240665599,3.3036,151.35,151.34,8.12]
[1727240666993,3.3036,151.35,151.31,6.57066337]
[1727240666994,3.3037,151.34,151.3,3.3044]
[1727240667193,3.3037,151.34,151.33,8.12]
[1727240669592,3.3032,151.36,151.33,8.12]
[1727240669790,3.3032,151.36,151.35,8.12]
[1727240673601,3.3035,151.35,151.31,3.3042]
[1727240673801,3.3035,151.35,151.34,8.12]
[1727240676091,3.3031,151.37,151.34,8.12]
[1727240676297,3.3031,151.37,151.36,8.12]
[1727240681413,3.3028,151.38,151.36,8.12]
[1727240681607,3.3028,151.38,151.37,8.12]
[1727240682310,1.3963,151.41,151.31,1.2982]
[1727240682513,8.12,151.39,151.3,3.38246959]
[1727240682711,3.3035,151.35,151.31,3.3042]
[1727240682916,3.3035,151.35,151.34,8.12]
[1727240683521,3.3032,151.36,151.34,8.12]
[1727240683717,3.3032,151.36,151.35,8.12]
[1727240684316,3.303,151.37,151.35,8.12]
[1727240684521,3.303,151.37,151.36,8.12]
[1727240685526,3.3032,151.36,151.33,3.3037]
[1727240685726,3.3032,151.36,151.35,8.12]
[1727240688827,1.3228,151.39,151.33,8.12]
[1727240689127,9.4428,151.39,151.33,8.12]
[1727240690730,3.3035,151.35,151.33,8.12]
[1727240691432,3.3036,151.34,151.33,8.12]
[1727240691929,3.3043,151.31,151.27,64.33897008]
[1727240692130,8.12,151.36,151.3,8.12]
[1727240692521,3.3042,151.32,151.3,8.12]
[1727240693328,3.3039,151.33,151.3,8.12]
[1727240693527,8.12,151.38,151.33,8.12]
[1727240694027,3.3031,151.37,151.33,8.12]
[1727240694329,8.12,151.38,151.33,8.12]
[1727240695727,3.3036,151.35,151.33,8.12]
[1727240698234,3.3032,151.36,151.34,8.12]
[1727240700427,3.3034,151.35,151.34,8.12]
[1727240700631,8.12,151.38,151.33,8.12]
[1727240700832,8.12,151.37,151.31,8.12]
[1727240701430,8.12,151.38,151.33,8.12]
[1727240702233,3.3037,151.34,151.33,8.12]
[1727240702434,8.12,151.35,151.3,8.12]
[1727240702636,2.6247,151.34,151.3,8.12]
[1727240702840,3.3043,151.31,151.3,8.12]
[1727240703336,2.6247,151.34,151.3,8.12]
[1727240704832,3.3041,151.32,151.28,3.3049]
[1727240705036,3.3041,151.32,151.3,8.12]
[1727240705239,2.6247,151.34,151.3,8.12]
[1727240706042,3.3042,151.32,151.3,8.12]
[1727240706340,3.3042,151.32,151.31,8.12]
[1727240708446,2.6247,151.34,151.29,8.12]
[1727240708447,3.3043,151.31,151.29,8.12]
[1727240708946,2.6247,151.34,151.3,8.12]
[1727240709453,3.304,151.33,151.3,8.12]
[1727240711142,8.12,151.31,151.24,8.22586097]
[1727240711442,8.12,151.3,151.25,20.03744202]
[1727240711641,3.3051,151.27,151.26,7.70670847]
[1727240712046,8.12,151.28,151.23,8.12]
[1727240712239,8.12,151.28,151.24,7.70648685]
[1727240712435,8.12,151.28,151.22,8.12]
[1727240712641,8.12,151.28,151.23,7.70794725]
[1727240712942,3.3055,151.26,151.22,8.12]
[1727240713440,3.3055,151.26,151.23,7.70998416]
[1727240713637,3.3055,151.26,151.22,8.12]
[1727240713843,3.3056,151.25,151.22,8.12]
[1727240714047,8.12,151.28,151.23,7.70686703]
[1727240714346,10.7845,151.27,151.22,8.12]
[1727240714539,3.3058,151.24,151.22,8.12]
[1727240715840,3.306,151.23,151.21,8.12]
[1727240716048,8.12,151.25,151.22,7.70185971]
[1727240716247,8.12,151.25,151.21,8.12]
[1727240716643,3.3062,151.23,151.21,8.12]
[1727240718645,2.6645,151.27,151.22,8.12]
[1727240718841,2.6645,151.27,151.24,8.12]
[1727240719241,5.9698,151.27,151.24,8.12]
[1727240719444,2.6645,151.27,151.24,8.12]
[1727240719646,3.3054,151.26,151.24,8.12]
[1727240721045,3.3054,151.26,151.21,3.3064]
[1727240721244,8.12,151.26,151.21,8.12]
[1727240721653,3.3059,151.24,151.21,8.12]
[1727240721844,8.12,151.26,151.21,8.12]
[1727240722042,8.12,151.25,151.21,8.12]
[1727240723148,3.3061,151.23,151.18,3.3069]
[1727240723346,3.3061,151.23,151.19,8.12]
[1727240725350,3.3062,151.22,151.19,8.12]
[1727240725848,8.12,151.24,151.19,8.12]
[1727240726042,8.12,151.24,151.18,8.12]
[1727240726748,3.3064,151.22,151.19,8.12]
[1727240726944,1.3148,151.26,151.21,8.12]
[1727240727143,3.3057,151.25,151.21,11.4264]
[1727240727349,3.3057,151.25,151.22,8.12]
[1727240727552,2.6645,151.27,151.22,8.12]
[1727240728241,2.6645,151.27,151.16,7.66840286]
[1727240728448,3.3055,151.26,151.2,12.7]
[1727240729050,3.3056,151.25,151.21,3.3064]
[1727240730356,3.3058,151.24,151.2,3.3066]
[1727240731358,2.6645,151.27,151.19,12.7]
[1727240732752,3.3058,151.24,151.21,3.3064]
[1727240734547,3.3058,151.24,151.2,3.3066]
[1727240735344,3.306,151.23,151.2,3.3066]
[1727240735554,3.306,151.23,151.19,12.7]
[1727240735555,3.306,151.23,151.19,16.0068]
[1727240736253,3.306,151.23,151.2,3.3066]
[1727240736852,3.306,151.23,151.19,16.0069]
[1727240737053,3.306,151.23,151.19,12.7]
[1727240737761,3.3059,151.24,151.2,3.3065]
[1727240742662,3.3061,151.23,151.2,3.3065]
[1727240744063,12.7,151.26,151.14,12.25469063]
[1727240744264,12.7,151.22,151.12,12.7]
[1727240744459,12.7,151.22,151.14,3.3078]
[1727240745262,3.3073,151.17,151.13,3.3081]
[1727240745758,3.3072,151.18,151.14,3.3079]
[1727240746161,3.3069,151.19,151.15,3.3077]
[1727240747260,3.3067,151.2,151.16,3.3075]
[1727240747758,3.3067,151.2,151.14,12.7]
[1727240747958,3.3065,151.21,151.16,12.7]
[1727240748159,3.3065,151.21,151.13,1.3161]
[1727240748160,2.6402,151.25,151.13,1.3161]
[1727240748361,3.3073,151.18,151.15,8.13]
[1727240748957,8.13,151.19,151.13,8.13]
[1727240749763,3.3075,151.17,151.13,11.4382]
[1727240750554,3.3076,151.16,151.13,8.13]
[1727240750759,1.3742,151.24,151.08,1.3292]
[1727240750760,8.13,151.18,151.08,1.3292]
[1727240751064,8.13,151.18,151.12,8.13]
[1727240751663,3.3079,151.15,151.12,8.13]
[1727240752667,3.3079,151.15,151.13,8.13]
[1727240754966,8.13,151.14,151.07,3.31755907]
[1727240755165,8.13,151.14,151.08,8.13]
[1727240756874,8.13,151.15,151.1,8.13]
[1727240757572,3.3084,151.13,151.1,8.13]
[1727240761967,3.3084,151.13,151.09,3.3089]
[1727240762165,3.3085,151.12,151.09,11.4389]
[1727240763472,3.3085,151.12,151.09,3.3089]
[1727240763674,3.3085,151.12,151.09,11.4389]
[1727240764069,3.3087,151.11,151.08,3.3092]
[1727240764972,3.3089,151.1,151.07,3.3095]
[1727240765171,8.13,151.11,151.05,7.57204283]
[1727240765472,8.13,151.11,151.05,8.13]
[1727240766080,8.13,151.11,151.05,11.4399]
[1727240766869,3.37206223,151.18,151.04,341.29340128]
[1727240767076,8.13,151.19,151.13,8.13]
[1727240767884,3.3074,151.17,151.13,11.438]
[1727240768475,3.3071,151.18,151.14,11.4379]
[1727240768871,12.2145,151.21,151.14,8.13]
[1727240769879,4.0845,151.21,151.16,8.13]
[1727240770377,4.0845,151.21,151.15,12.7]
[1727240770986,4.0845,151.21,151.17,3.3073]
[1727240773884,2.7551,151.21,151.17,3.3073]
[1727240774286,2.7551,151.21,151.15,12.7]
[1727240775080,3.3067,151.2,151.15,12.7]
[1727240776086,6.0616,151.21,151.15,12.7]
[1727240776283,2.7551,151.21,151.15,12.7]
[1727240776483,3.307,151.19,151.15,12.7]
[1727240777190,3.3071,151.18,151.15,12.7]
[1727240777486,2.7551,151.21,151.15,12.7]
[1727240777681,2.7551,151.21,151.13,12.7]
[1727240778286,3.308,151.14,151.13,12.7]
[1727240779591,2.6466,151.2,151.1,20.07473979]
[1727240779889,2.6466,151.2,151.1,12.7]
[1727240780789,3.3086,151.11,151.1,12.7]
[1727240784498,3.309,151.1,151.08,12.7]
[1727240784997,12.7,151.17,151.08,12.7]
[1727240785297,3.3091,151.09,151.08,12.7]
[1727240785494,15.99571778,151.17,151.07,79.42]
[1727240785898,3.3093,151.08,151.07,79.42]
[1727240786094,3.3093,151.08,151.06,15.94078363]
[1727240790397,3.3093,151.08,151.07,8.14]
[1727240791304,3.3093,151.08,151.07,11.50213174]
[1727240799013,3.3093,151.08,151.07,3.36213174]
[1727240799209,3.3098,151.06,151.03,19.17238383]
[1727240799397,3.3098,151.06,151.05,8.14]
[1727240799802,8.14,151.11,151.04,8.14]
[1727240799803,3.31,151.05,151.04,8.14]
[1727240801210,3.3098,151.06,151.04,8.14]
[1727240801409,3.2294989,151.14,151.05,8.14]
[1727240801611,8.14,151.12,151.07,8.14]
[1727240801808,3.3095,151.08,151.07,8.14]
[1727240802703,1.4003,151.13,151.05,3.37945411]
[1727240802908,3.3096,151.07,151.05,3.37945411]
[1727240803109,3.3096,151.07,151.06,8.14]
[1727240803507,8.14,151.11,151.06,8.14]
[1727240805502,3.3095,151.08,151.06,8.14]
[1727240806811,3.3095,151.07,151.06,8.14]
[1727240807207,1.373,151.2,151.1,12.6905]
[1727240807406,116.70287416,151.31,151.09,63.01205999]
[1727240807407,8.14,151.24,151.19,8.14]
[1727240808408,12.7,151.27,151.17,15.93136008]
[1727240808605,12.7,151.27,151.17,12.7]
[1727240809818,3.3065,151.21,151.17,12.7]
[1727240814215,3.3065,151.21,151.16,6.67847667]
[1727240814216,3.3068,151.2,151.16,3.37107667]
[1727240814615,12.7,151.24,151.16,3.37107667]
[1727240816621,3.3068,151.2,151.16,3.37107667]
[1727240816821,12.7,151.24,151.16,3.37107667]
[1727240817027,12.7,151.24,151.14,12.7]
[1727240817222,12.7,151.24,151.14,15.98999781]
[1727240817625,3.3073,151.18,151.14,19.29799781]
[1727240820932,3.3073,151.17,151.13,16.0081]
[1727240822739,3.3077,151.16,151.13,12.7]
[1727240823739,12.7,151.25,151.15,12.7]
[1727240823930,1.00779782,151.24,151.15,12.7]
[1727240824436,12.7,151.25,151.15,12.7]
[1727240824638,1.00781277,151.24,151.15,12.7]
[1727240824938,6.06248505,151.26,151.17,12.7]
[1727240825231,1.00799459,151.25,151.17,12.7]
[1727240827036,3.3067,151.2,151.17,12.7]
[1727240828029,6.06248505,151.26,151.17,12.7]
[1727240828030,3.3065,151.21,151.17,12.7]
[1727240828538,3.3065,151.21,151.2,8.13]
[1727240832139,3.3068,151.2,151.18,8.13]
[1727240838544,3.3069,151.19,151.18,8.13]
[1727240842243,3.3068,151.2,151.18,8.13]
[1727240843947,3.3069,151.19,151.18,8.13]
[1727240844148,3.0,151.22,151.18,8.13]
[1727240844645,3.0,151.22,151.16,6.57710158]
[1727240844646,3.0,151.22,151.21,8.13]
[1727240850748,3.0,151.22,151.2,3.3066]
[1727240850956,3.0,151.22,151.21,8.13]
[1727240852955,3.3054,151.26,151.21,8.13]
[1727240853154,3.3054,151.26,151.19,3.31127982]
[1727240853155,3.3054,151.26,151.25,8.13]
[1727240856857,3.3052,151.27,151.25,8.13]
[1727240861659,3.3054,151.26,151.23,3.306]
[1727240861963,3.3054,151.26,151.25,8.13]
[1727240862361,3.3052,151.27,151.25,8.13]
[1727240862560,3.3052,151.27,151.26,8.13]
[1727240866661,3.3052,151.27,151.23,3.306]
[1727240867061,3.3052,151.27,151.21,3.3064]
[1727240867257,8.13,151.29,151.24,8.13]
[1727240867464,8.13,151.27,151.17,7.35732505]
[1727240867761,1.4026,151.26,151.2,8.13]
[1727240868758,1.4026,151.26,151.16,82.70854497]
[1727240868960,1.4026,151.26,151.21,8.13]
[1727240869766,3.3063,151.22,151.21,8.13]
[1727240874267,1.4026,151.26,151.21,8.13]
[1727240874268,3.3061,151.23,151.21,8.13]
[1727240874970,1.4026,151.26,151.22,8.13]
[1727240875172,1.4026,151.26,151.24,8.13]
[1727240875563,3.3056,151.25,151.24,8.13]
[1727240877272,1.4026,151.26,151.22,8.13]
[1727240878368,3.306,151.23,151.22,8.13]
[1727240879073,3.3059,151.24,151.22,8.13]
[1727240879470,3.3059,151.24,151.23,8.13]
[1727240880473,3.3056,151.25,151.23,8.13]
[1727240881372,3.3054,151.26,151.23,8.13]
[1727240881573,3.3054,151.26,151.25,8.13]
[1727240882275,3.3057,151.25,151.23,8.13]
[1727240882469,2.7082,151.28,151.23,8.13]
[1727240883680,3.3056,151.25,151.23,8.13]
[1727240884875,2.7082,151.28,151.24,8.13]
[1727240885578,3.3053,151.27,151.24,8.13]
[1727240885877,3.3053,151.27,151.26,8.13]
[1727240891083,6.0132,151.28,151.26,8.13]
[1727240892381,3.3047,151.29,151.27,8.13]
[1727240897282,3.3049,151.28,151.27,8.13]
[1727240898487,3.3048,151.29,151.27,8.13]
[1727240898693,3.9662,151.32,151.28,8.13]
[1727240898997,3.9662,151.32,151.3,8.13]
[1727240899496,3.3043,151.31,151.3,8.13]
[1727240899792,3.9662,151.32,151.26,3.3053]
[1727240899992,3.9662,151.32,151.28,8.13]
[1727240900288,8.13,151.34,151.28,8.13]
[1727240900883,3.9318,151.35,151.3,8.13]
[1727240901092,3.9318,151.35,151.31,8.13]
[1727240901492,3.304,151.32,151.31,8.13]
[1727240904686,3.3039,151.33,151.31,8.13]
[1727240905084,2.6001,151.35,151.32,8.13]
[1727240905291,4.6,151.35,151.34,8.13]
[1727240907696,1.2966,151.35,151.31,8.13]
[1727240908490,9.4266,151.35,151.29,8.13]
[1727240908691,2.652,151.34,151.29,8.13]
[1727240910196,3.3042,151.32,151.29,8.13]
[1727240910602,3.3042,151.32,151.31,8.13]
[1727240916799,3.3039,151.33,151.31,8.13]
[1727240916999,3.3039,151.33,151.32,8.13]
[1727240917205,8.13,151.38,151.32,8.13]
[1727240917498,3.3034,151.35,151.34,8.13]
[1727240918506,4.055,151.39,151.34,8.13]
[1727240918705,4.055,151.39,151.35,8.13]
[1727240919104,3.3032,151.36,151.35,8.13]
[1727240920410,3.3031,151.37,151.35,8.13]
[1727240922108,3.3028,151.38,151.36,8.13]
[1727240923306,3.3026,151.39,151.36,8.13]
[1727240927012,3.3028,151.38,151.35,3.3034]
[1727240927218,96.7982571,151.4,151.31,1.3157]
[1727240927411,96.7982571,151.4,151.35,8.13]
[1727240928817,3.3032,151.37,151.35,8.13]
[1727240930722,104.9282571,151.4,151.29,1.2841]
[1727240930924,8.13,151.38,151.33,8.13]
[1727240931621,2.7254,151.39,151.34,8.13]
[1727240932221,2.7254,151.39,151.36,8.13]
[1727240933922,3.3029,151.38,151.36,8.13]
[1727240936623,3.3029,151.37,151.34,3.3036]
[1727240936828,2.7254,151.39,151.35,8.13]
[1727240938538,3.3032,151.36,151.35,8.13]
[1727240939333,2.7254,151.39,151.15,9.923]
[1727240939334,3.3036,151.34,151.15,9.923]
[1727240939530,3.3036,151.34,151.32,8.13]
[1727240940231,8.13,151.38,151.32,8.13]
[1727240941233,3.3037,151.34,151.32,8.13]
[1727240942327,3.3037,151.34,151.33,8.13]
[1727240942539,3.3035,151.35,151.33,8.13]
[1727240946529,3.3037,151.34,151.32,8.13]
[1727240946928,8.13,151.37,151.27,1.3706]
[1727240947133,8.13,151.37,151.04,13.2405]
[1727240947134,8.13,151.34,151.29,8.13]
[1727240947535,3.3044,151.31,151.29,8.13]
[1727240947740,8.13,151.34,151.26,3.27219247]
[1727240947938,10.7668,151.34,151.29,8.13]
[1727240948142,12.1456,151.34,151.29,8.13]
[1727240948836,8.13,151.33,151.25,62.98010455]
[1727240949143,8.13,151.31,151.26,8.13]
[1727240950342,3.3048,151.29,151.26,8.13]
[1727240951039,3.305,151.28,151.24,3.3057]
[1727240951241,3.305,151.28,151.25,8.13]
[1727240952436,4.0156,151.34,151.19,88.20526756]
[1727240952437,23.8556,151.34,151.19,88.20526756]
[1727240952639,8.13,151.26,151.19,88.20526756]
[1727240952844,8.13,151.26,151.19,96.33526756]
[1727240953032,8.13,151.26,151.19,99.64196756]
[1727240953033,3.3061,151.23,151.19,99.64196756]
[1727240953235,3.3061,151.23,151.19,91.51196756]
[1727240953444,8.13,151.26,151.21,8.13]
[1727240953751,23.8556,151.34,151.23,8.13]
[1727240953752,8.13,151.29,151.23,8.13]
[1727240954037,3.3052,151.27,151.24,8.13]
[1727240954243,3.3052,151.27,151.24,11.4357]
[1727240955138,69.184103,151.32,151.24,11.4357]
[1727240955348,8.13,151.3,151.24,11.4357]
[1727240956836,3.305,151.28,151.24,11.4357]
[1727240959144,69.184103,151.32,151.22,3.32914185]
[1727240959145,8.13,151.29,151.23,8.13]
[1727240959545,8.13,151.27,151.23,8.13]
[1727240960144,3.3054,151.26,151.23,8.13]
[1727240961242,3.3056,151.25,151.23,8.13]
[1727240961442,3.3056,151.25,151.21,11.4364]
[1727240961637,8.13,151.27,151.19,7.37192259]
[1727240961638,8.13,151.24,151.19,7.37192259]
[1727240961840,3.3063,151.22,151.18,11.4369]
[1727240962045,8.13,151.24,151.18,11.4369]
[1727240962240,3.3065,151.21,151.18,8.13]
[1727240962944,3.3065,151.21,151.18,11.4371]
[1727240963145,3.3063,151.22,151.18,11.4371]
[1727240963344,3.3063,151.22,151.19,8.13]
[1727240963647,3.3063,151.22,151.19,11.4368]
[1727240965544,3.3063,151.22,151.19,3.3068]
[1727240972059,3.3065,151.21,151.18,11.437]
[1727240972260,3.3065,151.21,151.18,8.13]
[1727240976155,3.3065,151.21,151.18,11.437]
[1727240981251,8.13,151.22,151.14,3.2378092]
[1727240981564,8.13,151.21,151.16,8.13]
[1727240981866,3.3072,151.18,151.15,6.65933304]
[1727240982053,8.13,151.19,151.14,3.27853417]
[1727240982258,1.4057,151.25,151.11,1.2777]
[1727240982259,8.13,151.18,151.13,91.53433233]
[1727240982461,8.13,151.18,151.13,91.56638863]
[1727240982766,8.13,151.18,151.13,99.69638863]
[1727240983266,3.3077,151.16,151.13,8.13]
[1727240983568,3.3077,151.16,151.12,3.3083]
[1727240983759,3.3077,151.16,151.13,8.13]
[1727240984159,1.4057,151.25,151.13,11.438]
[1727240984353,8.13,151.19,151.13,8.13]
[1727240985154,3.3072,151.18,151.14,3.3079]
[1727240985355,3.3072,151.18,151.14,11.4379]
[1727240986361,3.3069,151.19,151.15,3.3077]
[1727240986554,3.3069,151.19,151.16,8.13]
[1727240987263,3.3067,151.2,151.16,11.4374]
[1727240990763,3.3069,151.19,151.16,11.4374]
[1727240994964,3.3069,151.19,151.16,3.3074]
[1727240995360,3.3069,151.19,151.15,3.3077]
[1727240997567,3.3069,151.19,151.15,11.4377]
[1727240997866,3.3069,151.19,151.14,3.31005956]
[1727240997867,9.5357,151.25,151.14,3.31005956]
[1727240998071,8.13,151.22,151.16,8.13]
[1727240998266,3.3067,151.2,151.16,14.81891874]
[1727240999469,3.3067,151.2,151.16,3.38141874]
[1727240999669,3.3067,151.2,151.15,11.4377]
[1727241000066,3.3067,151.2,151.16,3.24255459]
[1727241000366,3.307,151.19,151.14,3.3079]
[1727241000571,1.4057,151.25,151.12,8.13]
[1727241000572,8.13,151.18,151.12,8.13]
[1727241001473,3.3073,151.17,151.13,6.63328127]
[1727241001974,3.3073,151.17,151.13,3.308]
[1727241002172,8.13,151.19,151.14,11.4378]
[1727241003174,11.4369,151.19,151.14,11.4378]
[1727241006073,3.3067,151.2,151.16,8.13]
[1727241006276,8.13,151.22,151.16,8.13]
[1727241007064,8.13,151.21,151.15,8.13]
[1727241007275,8.13,151.19,151.13,8.13]
[1727241007469,11.437,151.19,151.15,3.3077]
[1727241008875,8.13,151.18,151.11,1.3005]
[1727241009071,8.13,151.18,151.12,8.13]
[1727241009470,8.13,151.18,151.12,11.37200913]
[1727241009680,11.4372,151.18,151.14,3.308]
[1727241010372,1.4057,151.25,151.13,8.13]
[1727241010373,3.3068,151.2,151.16,3.3074]
[1727241010573,11.4368,151.2,151.16,3.3074]
[1727241010871,3.3068,151.2,151.16,3.3074]
[1727241011673,3.3069,151.19,151.16,3.3074]
[1727241013276,3.3067,151.2,151.16,3.3074]
[1727241014473,3.3069,151.19,151.16,3.3074]
[1727241014672,3.3069,151.19,151.15,11.4377]
[1727241014881,8.13,151.19,151.15,3.3077]
[1727241015081,3.3073,151.18,151.13,11.39505625]
[1727241015281,8.13,151.19,151.14,3.3079]
[1727241016077,3.3073,151.17,151.14,3.3079]
[1727241016280,8.13,151.19,151.14,3.3079]
[1727241016680,3.3072,151.18,151.15,3.3077]
[1727241016979,8.13,151.21,151.16,8.13]
[1727241017284,3.3067,151.2,151.16,11.4373]
[1727241017883,3.3067,151.2,151.17,3.3073]
[1727241019279,3.3065,151.21,151.18,3.3071]
[1727241019481,8.13,151.23,151.18,8.13]
[1727241019688,11.4361,151.23,151.19,3.3067]
[1727241020490,3.3062,151.22,151.19,3.3067]
[1727241021588,11.4361,151.23,151.19,3.3067]
[1727241022897,3.3062,151.22,151.19,3.3067]
[1727241023093,2.6171,151.26,151.15,3.28303884]
[1727241023299,10.7471,151.26,151.21,8.13]
[1727241024189,3.3056,151.25,151.21,11.4364]
[1727241024697,3.3056,151.25,151.22,3.3062]
[1727241025396,4.5966,151.26,151.23,3.3059]
[1727241025592,8.13,151.28,151.23,11.4359]
[1727241026293,8.13,151.28,151.23,8.13]
[1727241026685,3.3054,151.26,151.23,8.13]
[1727241027799,3.3052,151.27,151.23,11.4359]
[1727241028005,8.13,151.29,151.24,8.13]
[1727241028198,10.7674,151.3,151.25,3.3055]
[1727241028392,10.7674,151.3,151.26,8.13]
[1727241028599,8.13,151.29,151.24,8.13]
[1727241029200,3.305,151.28,151.24,11.4357]
[1727241029904,3.3051,151.27,151.24,11.4357]
[1727241030202,8.13,151.28,151.23,8.13]
[1727241030602,3.3055,151.26,151.23,8.13]
[1727241033197,3.306,151.24,151.2,14.78682744]
[1727241033398,8.13,151.28,151.23,8.13]
[1727241034607,3.3056,151.26,151.23,8.13]
[1727241036503,3.3056,151.25,151.23,8.13]
[1727241037406,2.6374,151.3,151.24,8.13]
[1727241037607,2.6374,151.3,151.24,3.37633128]
[1727241037904,2.6374,151.3,151.26,8.13]
[1727241038111,3.3047,151.29,151.26,8.13]
[1727241042702,5.942,151.3,151.26,11.4353]
[1727241043511,3.3046,151.3,151.26,11.4353]
[1727241043810,3.3043,151.31,151.27,11.4351]
[1727241045708,3.3045,151.3,151.27,11.4351]
[1727241046111,3.3045,151.3,151.27,8.13]
[1727241047714,3.9331,151.34,151.27,8.13]
[1727241048010,8.13,151.33,151.27,8.13]
[1727241048813,3.3044,151.31,151.27,11.4351]